fUSD/lending_fUSD_20260611
["ID","MTS","AMOUNT","RATE_DAILY","PERIOD"]
[424751033,1781124649000,-150.0,0.00027397,2]
[424751029,1781124649000,-150.0,0.00027397,2]
[424751032,1781124649000,-150.0,0.00027397,2]
[424751031,1781124649000,-150.0,0.00027397,2]
[424751030,1781124649000,-150.0,0.00027397,2]
[424751025,1781124649000,-150.0,0.00027397,2]
[424751028,1781124649000,-150.0,0.00027397,2]
[424751027,1781124649000,-150.0,0.00027397,2]
[424751026,1781124649000,-150.0,0.00027397,2]
[424751022,1781124649000,-150.0,0.00027397,2]
[424751023,1781124649000,-150.0,0.00027397,2]
[424751036,1781124649000,-150.0,0.00027397,2]
[424751049,1781124649000,-300.0,0.00027397,2]
[424751048,1781124649000,-280.431674,0.00027397,2]
[424751051,1781124649000,-690.449836,0.00027397,2]
[424751047,1781124649000,-151.0,0.00027397,2]
[424751075,1781124649000,-191.68658018,0.00027441,2]
[424751077,1781124649000,-242.50470747,0.00027441,2]
[424751068,1781124649000,-150.0,0.00027397,2]
[424751069,1781124649000,-244.74,0.000274,7]
[424751071,1781124649000,-2085.97,0.000274,2]
[424751072,1781124649000,-2085.97,0.000274,2]
[424751064,1781124649000,-690.449836,0.00027397,2]
[424751065,1781124649000,-690.449836,0.00027397,2]
[424751066,1781124649000,-24503.57,0.00027397,10]
[424751067,1781124649000,-31201.22,0.00027397,10]
[424751070,1781124649000,-2085.97,0.000274,2]
[424751062,1781124649000,-690.449836,0.00027397,2]
[424751076,1781124649000,-162.23121085,0.00027441,2]
[424751073,1781124649000,-2085.97,0.000274,2]
[424751074,1781124649000,-2085.97,0.000274,2]
[424751055,1781124649000,-690.449836,0.00027397,2]
[424751054,1781124649000,-690.449836,0.00027397,2]
[424751052,1781124649000,-690.449836,0.00027397,2]
[424751056,1781124649000,-690.449836,0.00027397,2]
[424751058,1781124649000,-690.449836,0.00027397,2]
[424751057,1781124649000,-690.449836,0.00027397,2]
[424751059,1781124649000,-690.449836,0.00027397,2]
[424751053,1781124649000,-690.449836,0.00027397,2]
[424751060,1781124649000,-690.449836,0.00027397,2]
[424751063,1781124649000,-690.449836,0.00027397,2]
[424751061,1781124649000,-690.449836,0.00027397,2]
[424751113,1781124650000,-233.5188934,0.00027599,2]
[424751116,1781124650000,-767.16,0.00027641,2]
[424751111,1781124650000,-767.16,0.0002758,7]
[424751115,1781124650000,-768.78,0.00027611,30]
[424751105,1781124650000,-767.16,0.0002755,2]
[424751112,1781124650000,-768.78,0.0002758,7]
[424751109,1781124650000,-1832.2,0.0002755,30]
[424751110,1781124650000,-707.01,0.0002755,30]
[424751103,1781124650000,-1034.03,0.0002755,30]
[424751114,1781124650000,-767.16,0.00027611,30]
[424751117,1781124650000,-768.78,0.00027641,2]
[424751123,1781124650000,-1034.03,0.00027711,7]
[424751118,1781124650000,-767.16,0.00027672,7]
[424751121,1781124650000,-767.16,0.00027702,30]
[424751120,1781124650000,-212.0,0.00027697,2]
[424751122,1781124650000,-768.78,0.00027702,30]
[424751125,1781124650000,-709.02,0.00027711,7]
[424751124,1781124650000,-1833.39,0.00027711,7]
[424751127,1781124650000,-1832.2,0.00027711,7]
[424751128,1781124650000,-707.01,0.00027711,7]
[424751126,1781124650000,-1030.03,0.00027711,7]
[424751129,1781124650000,-767.16,0.00027733,2]
[424751130,1781124650000,-768.78,0.00027733,2]
[424751106,1781124650000,-709.02,0.0002755,30]
[424751119,1781124650000,-768.78,0.00027672,7]
[424751108,1781124650000,-768.78,0.0002755,2]
[424751091,1781124650000,-154.8949609,0.00027507,2]
[424751104,1781124650000,-1833.39,0.0002755,30]
[424751085,1781124650000,-187.1888241,0.00027441,2]
[424751083,1781124650000,-160.54794585,0.00027441,2]
[424751084,1781124650000,-162.03871693,0.00027441,2]
[424751078,1781124650000,-182.10237434,0.00027441,2]
[424751079,1781124650000,-274.37089876,0.00027441,2]
[424751082,1781124650000,-159.78294909,0.00027441,2]
[424751081,1781124650000,-271.86373795,0.00027441,2]
[424751080,1781124650000,-175.91436318,0.00027441,2]
[424751086,1781124650000,-171.56171484,0.00027441,2]
[424751089,1781124650000,-671.0,0.000275,7]
[424751087,1781124650000,-151.4848965,0.00027441,2]
[424751088,1781124650000,-241.49,0.000275,7]
[424751096,1781124650000,-160.95654766,0.00027534,2]
[424751094,1781124650000,-180.40608669,0.00027508,2]
[424751097,1781124650000,-189.74482631,0.00027534,2]
[424751095,1781124650000,-151.24705612,0.00027508,2]
[424751090,1781124650000,-500.0,0.000275,7]
[424751093,1781124650000,-150.76327732,0.00027508,2]
[424751132,1781124650000,-768.78,0.00027763,7]
[424751092,1781124650000,-180.82186542,0.00027507,2]
[424751098,1781124650000,-152.23295547,0.00027534,2]
[424751099,1781124650000,-154.07034572,0.00027534,2]
[424751100,1781124650000,-180.81665496,0.00027534,2]
[424751101,1781124650000,-162.36628302,0.00027534,2]
[424751102,1781124650000,-160.31229487,0.00027534,2]
[424751107,1781124650000,-1030.03,0.0002755,30]
[424751142,1781124650000,-709.02,0.00027872,2]
[424751168,1781124650000,-707.01,0.00028033,30]
[424751133,1781124650000,-767.16,0.00027794,30]
[424751162,1781124650000,-768.78,0.00028007,2]
[424751175,1781124650000,-244.74,0.000281,7]
[424751167,1781124650000,-1832.2,0.00028033,30]
[424751166,1781124650000,-1030.03,0.00028033,30]
[424751165,1781124650000,-709.02,0.00028033,30]
[424751174,1781124650000,-768.78,0.00028099,2]
[424751170,1781124650000,-768.78,0.00028038,7]
[424751169,1781124650000,-767.16,0.00028038,7]
[424751171,1781124650000,-767.16,0.00028068,30]
[424751173,1781124650000,-767.16,0.00028099,2]
[424751172,1781124650000,-768.78,0.00028068,30]
[424751185,1781124650000,-707.01,0.00028194,7]
[424751179,1781124650000,-278.76739949,0.00028147,2]
[424751178,1781124650000,-768.81,0.0002813,7]
[424751177,1781124650000,-767.28,0.0002813,7]
[424751186,1781124650000,-1170.68,0.00028224,7]
[424751180,1781124650000,-1034.03,0.00028194,7]
[424751182,1781124650000,-709.02,0.00028194,7]
[424751184,1781124650000,-1832.2,0.00028194,7]
[424751181,1781124650000,-1833.39,0.00028194,7]
[424751183,1781124650000,-1030.03,0.00028194,7]
[424751188,1781124650000,-170.1,0.0002831,2]
[424751189,1781124650000,-350.0,0.00028467,11]
[424751187,1781124650000,-416.8,0.00028267,2]
[424751131,1781124650000,-767.16,0.00027763,7]
[424751161,1781124650000,-767.16,0.00028007,2]
[424751163,1781124650000,-1034.03,0.00028033,30]
[424751176,1781124650000,-284.95203121,0.000281,30]
[424751164,1781124650000,-1833.39,0.00028033,30]
[424751160,1781124650000,-284.95203121,0.00028,7]
[424751134,1781124650000,-768.78,0.00027794,30]
[424751139,1781124650000,-158.25,0.00027872,2]
[424751137,1781124650000,-767.16,0.00027855,7]
[424751136,1781124650000,-768.78,0.00027824,2]
[424751138,1781124650000,-768.78,0.00027855,7]
[424751140,1781124650000,-1034.03,0.00027872,2]
[424751135,1781124650000,-767.16,0.00027824,2]
[424751145,1781124650000,-707.01,0.00027872,2]
[424751144,1781124650000,-1832.2,0.00027872,2]
[424751150,1781124650000,-768.78,0.00027916,2]
[424751143,1781124650000,-1030.03,0.00027872,2]
[424751148,1781124650000,-214.46,0.000279,30]
[424751141,1781124650000,-1833.39,0.00027872,2]
[424751159,1781124650000,-284.95203121,0.00028,10]
[424751152,1781124650000,-768.78,0.00027946,7]
[424751156,1781124650000,-600.0,0.00028,2]
[424751157,1781124650000,-215.92376884,0.00028,10]
[424751154,1781124650000,-767.16,0.00027977,30]
[424751158,1781124650000,-215.92376884,0.00028,7]
[424751155,1781124650000,-768.78,0.00027977,30]
[424751149,1781124650000,-767.16,0.00027916,2]
[424751151,1781124650000,-767.16,0.00027946,7]
[424751147,1781124650000,-768.78,0.00027885,30]
[424751146,1781124650000,-767.16,0.00027885,30]
[424751153,1781124650000,-150.0,0.00027973,2]
[424751227,1781124651000,-200.0,0.000289,2]
[424751238,1781124651000,-690.449836,0.00028945,7]
[424751228,1781124651000,-200.0,0.000289,2]
[424751230,1781124651000,-571.0,0.000289,2]
[424751214,1781124651000,-309.7899218,0.00028805,2]
[424751224,1781124651000,-361.63330991,0.00028833,2]
[424751220,1781124651000,-321.91309533,0.00028833,2]
[424751223,1781124651000,-308.14069144,0.00028833,2]
[424751222,1781124651000,-304.46591094,0.00028833,2]
[424751219,1781124651000,-7958.7404531,0.0002883,2]
[424751229,1781124651000,-341.0,0.000289,2]
[424751221,1781124651000,-379.48965262,0.00028833,2]
[424751233,1781124651000,-187.354788,0.00028945,7]
[424751246,1781124651000,-167.3033954,0.00028971,2]
[424751234,1781124651000,-1164.202069,0.00028945,7]
[424751232,1781124651000,-151.0,0.00028942,7]
[424751236,1781124651000,-1164.202069,0.00028945,7]
[424751237,1781124651000,-1164.202069,0.00028945,7]
[424751235,1781124651000,-1164.202069,0.00028945,7]
[424751240,1781124651000,-690.449836,0.00028945,7]
[424751239,1781124651000,-690.449836,0.00028945,7]
[424751242,1781124651000,-37152.4389333,0.00028945,2]
[424751241,1781124651000,-690.44983167,0.00028945,7]
[424751243,1781124651000,-195159.150075,0.00028945,2]
[424751244,1781124651000,-233878.4986589,0.00028945,2]
[424751218,1781124651000,-302.49411224,0.00028806,2]
[424751231,1781124651000,-151.0,0.00028942,7]
[424751216,1781124651000,-301.52655465,0.00028806,2]
[424751199,1781124651000,-324.46242171,0.00028737,2]
[424751226,1781124651000,-320.62458974,0.00028833,2]
[424751249,1781124651000,-193.45,0.00029,2]
[424751198,1781124651000,-383.37316036,0.00028737,2]
[424751190,1781124651000,-2000.0,0.00028685,30]
[424751196,1781124651000,-6558.81930906,0.000287,2]
[424751194,1781124651000,-151.0,0.00028693,2]
[424751192,1781124651000,-701.0,0.00028685,30]
[424751193,1781124651000,-621.78829552,0.00028693,2]
[424751191,1781124651000,-2000.0,0.00028685,30]
[424751195,1781124651000,-6558.81930908,0.000287,2]
[424751197,1781124651000,-6558.81930906,0.000287,2]
[424751201,1781124651000,-364.20474867,0.00028737,2]
[424751212,1781124651000,-150.0,0.00028767,2]
[424751217,1781124651000,-360.81217337,0.00028806,2]
[424751200,1781124651000,-485.00941493,0.00028737,2]
[424751202,1781124651000,-548.74179751,0.00028737,2]
[424751208,1781124651000,-343.12342968,0.00028737,2]
[424751205,1781124651000,-321.0958917,0.00028737,2]
[424751211,1781124651000,-153.80113636,0.00028766,2]
[424751209,1781124651000,-302.969793,0.00028737,2]
[424751213,1781124651000,-215.92376884,0.000288,10]
[424751203,1781124651000,-543.72747591,0.00028737,2]
[424751206,1781124651000,-324.07743386,0.00028737,2]
[424751207,1781124651000,-374.37764819,0.00028737,2]
[424751204,1781124651000,-319.56589818,0.00028737,2]
[424751215,1781124651000,-361.64373084,0.00028805,2]
[424751225,1781124651000,-324.73256605,0.00028833,2]
[424751210,1781124651000,-351.82872635,0.00028737,2]
[424751248,1781124651000,-160.75,0.00029,2]
[424751247,1781124651000,-481.67016657,0.00029,60]
[424751250,1781124651000,-193.45,0.00029,2]
[424751282,1781124651000,-266.0,0.00029234,30]
[424751280,1781124651000,-869.0,0.00029234,30]
[424751278,1781124651000,-309.0,0.00029234,30]
[424751285,1781124651000,-515.0,0.00029234,30]
[424751294,1781124651000,-3233.32786055,0.000295,5]
[424751287,1781124651000,-265.0,0.00029428,2]
[424751286,1781124651000,-150.0,0.00029372,2]
[424751284,1781124651000,-285.0,0.00029234,30]
[424751295,1781124651000,-3233.32786055,0.000295,5]
[424751288,1781124651000,-1650.0,0.00029428,10]
[424751289,1781124651000,-500.0,0.00029479,2]
[424751291,1781124651000,-1298.15883583,0.000295,5]
[424751292,1781124651000,-2917.79113484,0.000295,5]
[424751293,1781124651000,-2917.79113484,0.000295,5]
[424751296,1781124651000,-3263.60424147,0.000295,5]
[424751299,1781124651000,-3548.86458633,0.000295,5]
[424751298,1781124651000,-3548.86458633,0.000295,5]
[424751304,1781124651000,-350.0,0.00029534,9]
[424751305,1781124651000,-350.0,0.00029534,9]
[424751300,1781124651000,-3852.55651787,0.000295,5]
[424751297,1781124651000,-3263.60424147,0.000295,5]
[424751301,1781124651000,-3852.55651787,0.000295,5]
[424751302,1781124651000,-355.06124216,0.000295,5]
[424751307,1781124651000,-151.0,0.00029555,2]
[424751303,1781124651000,-559.82815487,0.000295,5]
[424751306,1781124651000,-151.0,0.00029555,2]
[424751245,1781124651000,-186.24909246,0.00028971,2]
[424751276,1781124651000,-990.0,0.00029234,30]
[424751281,1781124651000,-321.0,0.00029234,30]
[424751290,1781124651000,-1298.15883583,0.000295,5]
[424751283,1781124651000,-1025.0,0.00029234,30]
[424751277,1781124651000,-1333.0,0.00029234,30]
[424751253,1781124651000,-500.0,0.00029,2]
[424751257,1781124651000,-500.0,0.00029,2]
[424751256,1781124651000,-500.0,0.00029,2]
[424751251,1781124651000,-500.0,0.00029,2]
[424751258,1781124651000,-500.0,0.00029,2]
[424751260,1781124651000,-500.0,0.00029,2]
[424751255,1781124651000,-500.0,0.00029,2]
[424751261,1781124651000,-718.28,0.00029,2]
[424751259,1781124651000,-500.0,0.00029,2]
[424751254,1781124651000,-500.0,0.00029,2]
[424751262,1781124651000,-718.28,0.00029,2]
[424751263,1781124651000,-718.28,0.00029,2]
[424751252,1781124651000,-500.0,0.00029,2]
[424751264,1781124651000,-2746.85,0.00029,2]
[424751279,1781124651000,-217.0,0.00029234,30]
[424751265,1781124651000,-500.0,0.00029,2]
[424751275,1781124651000,-274.0,0.00029234,30]
[424751274,1781124651000,-319.0,0.00029234,30]
[424751269,1781124651000,-527.39395721,0.00029,2]
[424751270,1781124651000,-1018.02,0.000291,4]
[424751273,1781124651000,-309.0,0.00029198,30]
[424751272,1781124651000,-9343.12,0.0002916,120]
[424751271,1781124651000,-241.49,0.000291,7]
[424751267,1781124651000,-500.0,0.00029,2]
[424751266,1781124651000,-500.0,0.00029,2]
[424751268,1781124651000,-500.0,0.00029,2]
[424751345,1781124652000,-225.21297495,0.00029601,2]
[424751355,1781124652000,-293.22826481,0.00029672,2]
[424751352,1781124652000,-286.75068551,0.00029672,2]
[424751344,1781124652000,-241.2633759,0.00029601,2]
[424751348,1781124652000,-464.6848827,0.00029671,2]
[424751343,1781124652000,-253.04988814,0.00029601,2]
[424751346,1781124652000,-259.94548218,0.00029601,2]
[424751340,1781124652000,-194.51230655,0.00029601,2]
[424751338,1781124652000,-514.68514451,0.00029601,2]
[424751337,1781124652000,-561.56647229,0.00029601,2]
[424751349,1781124652000,-542.46559626,0.00029671,2]
[424751347,1781124652000,-217.93422179,0.00029601,2]
[424751353,1781124652000,-239.26414617,0.00029672,2]
[424751364,1781124652000,-1472.55704807,0.00029698,2]
[424751351,1781124652000,-233.97498709,0.00029671,2]
[424751354,1781124652000,-181.32982294,0.00029672,2]
[424751357,1781124652000,-164.10870769,0.00029672,2]
[424751367,1781124652000,-456.69886641,0.00029699,2]
[424751362,1781124652000,-453.74116836,0.00029672,2]
[424751368,1781124652000,-462.21103716,0.00029699,2]
[424751356,1781124652000,-169.58866854,0.00029672,2]
[424751358,1781124652000,-452.28983197,0.00029672,2]
[424751359,1781124652000,-187.00532554,0.00029672,2]
[424751360,1781124652000,-541.21826006,0.00029672,2]
[424751361,1781124652000,-258.63624667,0.00029672,2]
[424751363,1781124652000,-1170.68,0.00029687,7]
[424751339,1781124652000,-454.45468949,0.00029601,2]
[424751350,1781124652000,-171.3763261,0.00029671,2]
[424751335,1781124652000,-205.58962839,0.00029601,2]
[424751316,1781124652000,-194.18605571,0.00029601,2]
[424751333,1781124652000,-166.82082127,0.00029601,2]
[424751365,1781124652000,-482.86964299,0.00029699,2]
[424751317,1781124652000,-546.30712301,0.00029601,2]
[424751308,1781124652000,-227.0,0.00029555,2]
[424751314,1781124652000,-727.5141224,0.00029601,2]
[424751315,1781124652000,-259.49884754,0.00029601,2]
[424751311,1781124652000,-216.37775023,0.00029601,2]
[424751312,1781124652000,-575.05974053,0.00029601,2]
[424751310,1781124652000,-221.31728835,0.00029601,2]
[424751313,1781124652000,-486.69363256,0.00029601,2]
[424751329,1781124652000,-185.2604125,0.00029601,2]
[424751319,1781124652000,-220.93954072,0.00029601,2]
[424751322,1781124652000,-815.59121386,0.00029601,2]
[424751318,1781124652000,-823.11269627,0.00029601,2]
[424751323,1781124652000,-154.30688643,0.00029601,2]
[424751327,1781124652000,-185.40012574,0.00029601,2]
[424751326,1781124652000,-234.65695278,0.00029601,2]
[424751325,1781124652000,-479.34884727,0.00029601,2]
[424751324,1781124652000,-205.56677579,0.00029601,2]
[424751328,1781124652000,-481.64383756,0.00029601,2]
[424751320,1781124652000,-230.75552074,0.00029601,2]
[424751321,1781124652000,-245.69643589,0.00029601,2]
[424751331,1781124652000,-275.66086007,0.00029601,2]
[424751342,1781124652000,-238.04654023,0.00029601,2]
[424751341,1781124652000,-527.74308953,0.00029601,2]
[424751330,1781124652000,-486.11615078,0.00029601,2]
[424751334,1781124652000,-230.67104731,0.00029601,2]
[424751332,1781124652000,-240.79250091,0.00029601,2]
[424751336,1781124652000,-214.77983455,0.00029601,2]
[424751366,1781124652000,-569.23447893,0.00029699,2]
[424751309,1781124652000,-221.0,0.00029555,2]
[424751373,1781124652000,-159.62,0.00029753,30]
[424751400,1781124652000,-650.0,0.0003,2]
[424751404,1781124652000,-153.80113636,0.00030135,2]
[424751406,1781124652000,-157.69923417,0.00030137,2]
[424751408,1781124652000,-247.2095207,0.00030137,2]
[424751407,1781124652000,-1125.82,0.00030137,30]
[424751410,1781124652000,-200.0,0.00030137,2]
[424751414,1781124652000,-315.40867109,0.00030176,7]
[424751416,1781124652000,-365.1177954,0.00030176,2]
[424751412,1781124652000,-150.0,0.00030137,30]
[424751409,1781124652000,-575.61,0.00030137,5]
[424751405,1781124652000,-9390.456,0.00030137,30]
[424751411,1781124652000,-316.0,0.00030137,2]
[424751415,1781124652000,-442.6345767,0.00030176,2]
[424751413,1781124652000,-150.0,0.00030137,2]
[424751418,1781124652000,-432.75550045,0.00030176,2]
[424751427,1781124652000,-272.42012063,0.00030176,2]
[424751417,1781124652000,-315.39846833,0.00030176,2]
[424751426,1781124652000,-396.69558007,0.00030176,2]
[424751428,1781124652000,-315.98830037,0.00030176,2]
[424751429,1781124652000,-388.37211142,0.00030176,2]
[424751419,1781124652000,-766.74632071,0.00030176,2]
[424751420,1781124652000,-182.82440843,0.00030176,2]
[424751421,1781124652000,-179.16425395,0.00030176,2]
[424751423,1781124652000,-970.01882987,0.00030176,2]
[424751424,1781124652000,-518.99769508,0.00030176,2]
[424751425,1781124652000,-264.93580823,0.00030176,2]
[424751369,1781124652000,-542.44996487,0.00029699,2]
[424751399,1781124652000,-1994.5246291,0.0003,2]
[424751397,1781124652000,-369.24803815,0.0003,30]
[424751422,1781124652000,-648.92484341,0.00030176,2]
[424751392,1781124652000,-481.43898013,0.000299,2]
[424751394,1781124652000,-12499.99,0.0003,2]
[424751372,1781124652000,-15000.0,0.0002974,3]
[424751371,1781124652000,-480.9368846,0.00029699,2]
[424751374,1781124652000,-159.62,0.00029753,30]
[424751376,1781124652000,-3556.0,0.00029812,2]
[424751375,1781124652000,-159.62,0.00029753,30]
[424751377,1781124652000,-382.0,0.00029812,2]
[424751378,1781124652000,-1274.0,0.00029812,2]
[424751380,1781124652000,-481.43898027,0.000299,2]
[424751390,1781124652000,-481.43898013,0.000299,2]
[424751386,1781124652000,-481.43898013,0.000299,2]
[424751387,1781124652000,-481.43898013,0.000299,2]
[424751381,1781124652000,-481.43898013,0.000299,2]
[424751384,1781124652000,-481.43898013,0.000299,2]
[424751370,1781124652000,-487.09884907,0.00029699,2]
[424751379,1781124652000,-933.0,0.00029812,2]
[424751389,1781124652000,-481.43898013,0.000299,2]
[424751398,1781124652000,-160.0,0.0003,120]
[424751396,1781124652000,-18782.358665,0.0003,7]
[424751403,1781124652000,-3210.89,0.00030125,2]
[424751393,1781124652000,-9343.12,0.00029982,120]
[424751401,1781124652000,-284.95203121,0.0003,7]
[424751391,1781124652000,-481.43898013,0.000299,2]
[424751383,1781124652000,-481.43898013,0.000299,2]
[424751395,1781124652000,-22500.0,0.0003,2]
[424751382,1781124652000,-481.43898013,0.000299,2]
[424751402,1781124652000,-1524.980926,0.0003,2]
[424751388,1781124652000,-481.43898013,0.000299,2]
[424751385,1781124652000,-481.43898013,0.000299,2]
[424751473,1781124653000,-482.5267518,0.00030177,2]
[424751458,1781124653000,-212.27806,0.00030177,2]
[424751460,1781124653000,-551.32172015,0.00030177,2]
[424751459,1781124653000,-648.15486771,0.00030177,2]
[424751465,1781124653000,-748.75529638,0.00030177,2]
[424751476,1781124653000,-309.0,0.00030198,30]
[424751475,1781124653000,-435.86844357,0.00030177,2]
[424751464,1781124653000,-429.5596691,0.00030177,2]
[424751466,1781124653000,-323.89609535,0.00030177,2]
[424751461,1781124653000,-703.6574527,0.00030177,2]
[424751463,1781124653000,-411.17925677,0.00030177,2]
[424751474,1781124653000,-519.89096436,0.00030177,2]
[424751472,1781124653000,-506.09977629,0.00030177,2]
[424751470,1781124653000,-389.02461309,0.00030177,2]
[424751468,1781124653000,-224.46304643,0.00030177,2]
[424751471,1781124653000,-476.09308045,0.00030177,2]
[424751469,1781124653000,-605.93958599,0.00030177,2]
[424751477,1781124653000,-319.0,0.00030234,30]
[424751482,1781124653000,-217.0,0.00030234,30]
[424751479,1781124653000,-990.0,0.00030234,30]
[424751480,1781124653000,-1333.0,0.00030234,30]
[424751481,1781124653000,-309.0,0.00030234,30]
[424751457,1781124653000,-394.07897693,0.00030177,2]
[424751478,1781124653000,-274.0,0.00030234,30]
[424751467,1781124653000,-686.24685935,0.00030177,2]
[424751462,1781124653000,-461.34209463,0.00030177,2]
[424751444,1781124653000,-263.8276857,0.00030176,2]
[424751456,1781124653000,-642.19178341,0.00030177,2]
[424751486,1781124653000,-1025.0,0.00030234,30]
[424751432,1781124653000,-728.40949734,0.00030176,2]
[424751431,1781124653000,-233.51984573,0.00030176,2]
[424751441,1781124653000,-441.87908144,0.00030176,2]
[424751433,1781124653000,-169.25841594,0.00030176,2]
[424751430,1781124653000,-494.41904141,0.00030176,2]
[424751435,1781124653000,-382.22948702,0.00030176,2]
[424751434,1781124653000,-214.4419437,0.00030176,2]
[424751436,1781124653000,-1097.48359502,0.00030176,2]
[424751437,1781124653000,-150.55645213,0.00030176,2]
[424751440,1781124653000,-265.6924333,0.00030176,2]
[424751439,1781124653000,-385.03268529,0.00030176,2]
[424751438,1781124653000,-201.82217861,0.00030176,2]
[424751443,1781124653000,-491.39287179,0.00030176,2]
[424751445,1781124653000,-424.27116041,0.00030176,2]
[424751442,1781124653000,-461.51104148,0.00030176,2]
[424751451,1781124653000,-183.69698338,0.00030176,2]
[424751446,1781124653000,-413.35119911,0.00030176,2]
[424751448,1781124653000,-1087.45495182,0.00030176,2]
[424751452,1781124653000,-411.13355158,0.00030176,2]
[424751450,1781124653000,-200.3873064,0.00030176,2]
[424751449,1781124653000,-308.61377285,0.00030176,2]
[424751447,1781124653000,-325.57646544,0.00030176,2]
[424751454,1781124653000,-469.31390555,0.00030177,2]
[424751455,1781124653000,-370.80025147,0.00030177,2]
[424751453,1781124653000,-639.13179636,0.00030176,2]
[424751483,1781124653000,-869.0,0.00030234,30]
[424751487,1781124653000,-285.0,0.00030234,30]
[424751484,1781124653000,-321.0,0.00030234,30]
[424751512,1781124653000,-643.82619066,0.00030277,2]
[424751513,1781124653000,-608.93182188,0.00030277,2]
[424751517,1781124653000,-641.24917947,0.00030277,2]
[424751515,1781124653000,-723.26661983,0.00030277,2]
[424751521,1781124653000,-250.0,0.00030717,7]
[424751520,1781124653000,-150.0,0.00030685,30]
[424751522,1781124653000,-958.43290089,0.00030752,2]
[424751524,1781124653000,-1371.85449378,0.00030752,2]
[424751525,1781124653000,-879.57181588,0.00030752,2]
[424751528,1781124653000,-802.73972926,0.00030753,2]
[424751526,1781124653000,-1359.31868977,0.00030752,2]
[424751510,1781124653000,-604.98822447,0.00030249,2]
[424751527,1781124653000,-798.91474545,0.00030752,2]
[424751530,1781124653000,-935.94412048,0.00030753,2]
[424751531,1781124653000,-757.42448249,0.00030753,2]
[424751532,1781124653000,-255.0,0.00030775,2]
[424751533,1781124653000,-9343.12,0.00030803,120]
[424751535,1781124653000,-774.47480451,0.00030825,2]
[424751538,1781124653000,-150.0,0.00030841,2]
[424751540,1781124653000,-948.72413156,0.00030854,2]
[424751534,1781124653000,-350.0,0.00030816,17]
[424751536,1781124653000,-753.81638662,0.00030826,2]
[424751537,1781124653000,-756.23528059,0.00030826,2]
[424751539,1781124653000,-804.78273832,0.00030854,2]
[424751529,1781124653000,-810.19358464,0.00030753,2]
[424751514,1781124653000,-616.28138288,0.00030277,2]
[424751523,1781124653000,-1212.52353734,0.00030752,2]
[424751516,1781124653000,-649.46513209,0.00030277,2]
[424751485,1781124653000,-266.0,0.00030234,30]
[424751511,1781124653000,-758.97930525,0.00030277,2]
[424751489,1781124653000,-416.8,0.00030239,2]
[424751488,1781124653000,-515.0,0.00030234,30]
[424751490,1781124653000,-228.08904723,0.00030248,2]
[424751496,1781124653000,-201.92594505,0.00030248,2]
[424751497,1781124653000,-723.28746169,0.00030248,2]
[424751492,1781124653000,-264.60155904,0.00030248,2]
[424751493,1781124653000,-158.99859323,0.00030248,2]
[424751494,1781124653000,-336.00003775,0.00030248,2]
[424751495,1781124653000,-186.53480136,0.00030248,2]
[424751499,1781124653000,-467.94997419,0.00030248,2]
[424751498,1781124653000,-342.75265221,0.00030248,2]
[424751491,1781124653000,-619.57984361,0.00030248,2]
[424751500,1781124653000,-573.50137102,0.00030249,2]
[424751519,1781124653000,-241.49,0.000306,7]
[424751509,1781124653000,-481.58500183,0.00030249,2]
[424751508,1781124653000,-333.64164255,0.00030249,2]
[424751504,1781124653000,-328.21741537,0.00030249,2]
[424751507,1781124653000,-517.27249335,0.00030249,2]
[424751518,1781124653000,-150.0,0.00030411,30]